[Event "Slovakia Chess Open 2024"]
[Site "Modra"]
[Date "2024.03.05"]
[Round "9.10"]
[White "Petrik, Matus"]
[Black "Fratric, Jakub"]
[Result "1/2-1/2"]
[ECO "B23"]
[WhiteElo "1812"]
[BlackElo "1750"]
[Annotator "NA RC"]
[PlyCount "27"]
[EventDate "2024.02.29"]
[EventType "swiss"]
[EventCountry "SVK"]
[SourceTitle "playchess.com"]
[Source "ChessBase"]
[SourceQuality "1"]
[TimeControl "5400+30"]

1. e4 {[%emt 0:50:07]} c5 {[%emt 0:00:13]} 2. Nc3 {[%emt 0:00:13]} e6 {[%emt 0:01:04]} 3. g3 {[%emt 0:00:09]} Nc6 {[%emt 0:00:51]} 4. Bg2 {[%emt 0:00:10]} Nge7 {[%emt 0:02:18]} 5. f4 {[%emt 0:00:32]} Nd4 {[%emt 0:02:30]} 6. Nf3 {[%emt 0:01:10]} Nec6 {[%emt 0:06:57]} 7. O-O {[%emt 0:00:08]} Be7 {[%emt 0:00:21]} 8. d3 {[%emt 0:01:12]} d6 {[%emt 0:02:17]} 9. b3 {[%emt 0:00:45]} Bd7 {[%emt 0:02:15]} 10. Bb2 {[%emt 0:00:50]} O-O {[%emt 0:04:43]} 11. Ne2 {[%emt 0:00:22]} Bf6 {[%emt 0:04:44]} 12. Nexd4 {[%emt 0:04:34]} cxd4 {[%emt 0:01:07]} 13. Qe2 {[%emt 0:01:49]} Qb6 {[%emt 0:04:44]} 14. Kh1 {[%emt 0:05:46]} 1/2-1/2

[Event "Slovakia Chess Open 2024"]
[Site "Modra"]
[Date "2024.03.05"]
[Round "9.11"]
[White "Visvader, Kristof"]
[Black "Nosal, Tobias"]
[Result "1/2-1/2"]
[ECO "C02"]
[WhiteElo "1696"]
[BlackElo "1773"]
[Annotator "NA RC"]
[PlyCount "58"]
[EventDate "2024.02.29"]
[EventType "swiss"]
[EventCountry "SVK"]
[SourceTitle "playchess.com"]
[Source "ChessBase"]
[SourceQuality "1"]
[TimeControl "5400+30"]

1. e4 {[%emt 0:00:08]} e6 {[%emt 0:00:10]} 2. d4 {[%emt 0:00:04]} d5 {[%emt 0:00:04]} 3. e5 {[%emt 0:00:02]} c5 {[%emt 0:00:10]} 4. c3 {[%emt 0:00:04]} Nc6 {[%emt 0:00:04]} 5. Nf3 {[%emt 0:00:11]} Qb6 {[%emt 0:00:10]} 6. a3 {[%emt 0:00:21]} Nh6 {[%emt 0:00:11]} 7. b4 {[%emt 0:00:24]} cxd4 {[%emt 0:00:15]} 8. cxd4 {[%emt 0:00:12]} Nf5 {[%emt 0:00:17]} 9. Bb2 {[%emt 0:00:09]} Bd7 {[%emt 0:00:29]} 10. Be2 {[%emt 0:00:19]} Be7 {[%emt 0:00:12]} 11. O-O {[%emt 0:00:05]} h5 {[%emt 0:00:12]} 12. Qd3 {[%emt 0:00:55]} g5 {[%emt 0:02:18]} 13. Rd1 {[%emt 0:01:24]} g4 {[%emt 0:05:56]} 14. Ne1 {[%emt 0:00:18]} Rc8 {[%emt 0:06:16]} 15. Nc2 {[%emt 0:01:12]} f6 {[%emt 0:16:02]} 16. b5 {[%emt 0:05:14]} Na5 {[%emt 0:04:01]} 17. exf6 {[%emt 0:01:13]} Bxf6 {[%emt 0:03:03]} 18. a4 {[%emt 0:01:32]} Nc4 {[%emt 0:09:09]} 19. Bc3 {[%emt 0:01:52]} Qc7 {[%emt 0:07:22]} 20. Ne3 {[%emt 0:01:17]} Ncd6 {[%emt 0:06:20]} 21. Bb2 {[%emt 0:03:11]} Qd8 {[%emt 0:09:07]} 22. Nd2 {[%emt 0:02:23]} Qe7 {[%emt 0:03:06]} 23. Ndf1 {[%emt 0:00:28]} Qg7 {[%emt 0:03:42]} 24. Nxf5 {[%emt 0:00:43]} Nxf5 {[%emt 0:01:01]} 25. Ne3 {[%emt 0:00:06]} Nxe3 {[%emt 0:01:42]} 26. fxe3 {[%emt 0:00:30]} O-O {[%emt 0:02:34]} 27. Rac1 {[%emt 0:00:27]} Rfd8 {[%emt 0:05:00]} 28. Rxc8 {[%emt 0:01:07]} Rxc8 {[%emt 0:00:38]} 29. Rc1 {[%emt 0:00:03]} Rxc1+ {[%emt 0:01:44]} 1/2-1/2

[Event "Slovakia Chess Open 2024"]
[Site "Modra"]
[Date "2024.03.05"]
[Round "9.12"]
[White "Gonda, Jan"]
[Black "Pisarcik, Richard"]
[Result "1/2-1/2"]
[ECO "A52"]
[WhiteElo "1657"]
[BlackElo "1855"]
[Annotator "NA RC"]
[PlyCount "96"]
[EventDate "2024.02.29"]
[EventType "swiss"]
[EventCountry "SVK"]
[SourceTitle "playchess.com"]
[Source "ChessBase"]
[SourceQuality "1"]
[TimeControl "5400+30"]

1. d4 {[%emt 0:00:02]} Nf6 {[%emt 0:00:05]} 2. c4 {[%emt 0:00:06]} e5 {[%emt 0:00:05]} 3. dxe5 {[%emt 0:00:51]} Ng4 {[%emt 0:01:40]} 4. a3 {[%emt 0:02:51]} Nxe5 {[%emt 0:01:35]} 5. e4 {[%emt 0:02:03]} Nbc6 {[%emt 0:01:28]} 6. f4 {[%emt 0:00:44]} Ng6 {[%emt 0:00:28]} 7. Nf3 {[%emt 0:00:21]} a5 {[%emt 0:02:22]} 8. Be3 {[%emt 0:01:01]} d6 {[%emt 0:00:18]} 9. Nc3 {[%emt 0:00:32]} Be7 {[%emt 0:02:18]} 10. Be2 {[%emt 0:01:56]} Bf6 {[%emt 0:01:47]} 11. Qc2 {[%emt 0:00:41]} Bd7 {[%emt 0:00:48]} 12. O-O {[%emt 0:00:17]} O-O {[%emt 0:01:32]} 13. Nd5 {[%emt 0:01:09]} Re8 {[%emt 0:02:02]} 14. Nxf6+ {[%emt 0:00:19]} Qxf6 {[%emt 0:00:17]} 15. Nd2 {[%emt 0:02:47]} Nd4 {[%emt 0:03:44]} 16. Bxd4 {[%emt 0:04:02]} Qxd4+ {[%emt 0:14:05]} 17. Kh1 {[%emt 0:01:54]} Re7 {[%emt 0:00:30]} 18. Bd3 {[%emt 0:00:30]} Bc6 {[%emt 0:00:31]} 19. Rae1 {[%emt 0:02:14]} f5 {[%emt 0:06:51]} 20. Nf3 {[%emt 0:04:21]} Qc5 {[%emt 0:01:43]} 21. exf5 {[%emt 0:10:56]} Rxe1 {[%emt 0:07:06]} 22. Nxe1 {[%emt 0:01:06]} Nh4 {[%emt 0:00:55]} 23. Qf2 {[%emt 0:06:53]} Qxf2 {[%emt 0:01:52]} 24. Rxf2 {[%emt 0:00:23]} Re8 {[%emt 0:00:44]} 25. Nc2 {[%emt 0:06:02]} Kf7 {[%emt 0:07:34]} 26. h3 {[%emt 0:02:28]} Be4 {[%emt 0:02:03]} 27. Bxe4 {[%emt 0:01:15]} Rxe4 {[%emt 0:00:23]} 28. g4 {[%emt 0:05:33]} Rxc4 {[%emt 0:01:19]} 29. Kh2 {[%emt 0:01:18]} Nf3+ {[%emt 0:00:33]} 30. Kg3 {[%emt 0:01:09]} Nd4 {[%emt 0:00:51]} 31. Ne3 {[%emt 0:02:35]} Rc5 {[%emt 0:01:50]} 32. Rd2 {[%emt 0:00:52]} Nb3 {[%emt 0:00:37]} 33. Rc2 {[%emt 0:01:22]} Rxc2 {[%emt 0:01:22]} 34. Nxc2 {[%emt 0:00:01]} Nd2 {[%emt 0:00:50]} 35. Ne1 {[%emt 0:03:24]} b5 {[%emt 0:01:16]} 36. Kf2 {[%emt 0:00:21]} c5 {[%emt 0:00:24]} 37. Ke2 {[%emt 0:01:11]} Nc4 {[%emt 0:00:23]} 38. Nd3 {[%emt 0:00:22]} Nb6 {[%emt 0:00:48]} 39. Kd2 {[%emt 0:02:24]} c4 {[%emt 0:02:09]} 40. Nc1 {[%emt 0:00:52]} Nd5 {[%emt 0:00:25]} 41. Ne2 {[%emt 0:00:14]} Ke7 {[%emt 0:01:00]} 42. g5 {[%emt 0:00:38]} Kf7 {[%emt 0:01:46]} 43. h4 {[%emt 0:01:28]} h6 {[%emt 0:01:40]} 44. Nc3 {[%emt 0:06:20]} Nxf4 {[%emt 0:03:32]} 45. Nxb5 {[%emt 0:00:09]} d5 {[%emt 0:00:04]} 46. Nd4 {[%emt 0:00:54]} hxg5 {[%emt 0:04:16]} 47. hxg5 {[%emt 0:00:02]} g6 {[%emt 0:00:27]} 48. f6 {[%emt 0:00:41]} Nh3 {[%emt 0:02:36]} 1/2-1/2

[Event "Slovakia Chess Open 2024"]
[Site "Modra"]
[Date "2024.03.05"]
[Round "9.13"]
[White "Smolka, Robert"]
[Black "Chojnacki, Kevin"]
[Result "1-0"]
[ECO "D00"]
[WhiteElo "1620"]
[BlackElo "1672"]
[Annotator "NA RC"]
[PlyCount "154"]
[EventDate "2024.02.29"]
[EventType "swiss"]
[EventCountry "SVK"]
[SourceTitle "playchess.com"]
[Source "ChessBase"]
[SourceQuality "1"]
[TimeControl "5400+30"]

1. e4 {[%emt 0:02:05]} d5 {[%emt 0:03:56]} 2. d4 {[%emt 0:03:25]} Nf6 {[%emt 0:00:30]} 3. e5 {[%emt 0:00:30]} Nfd7 {[%emt 0:00:36]} 4. Nf3 {[%emt 0:00:31]} Nb6 {[%emt 0:00:30]} 5. Be3 {[%emt 0:00:30]} Bg4 {[%emt 0:00:30]} 6. Bd3 {[%emt 0:00:30]} e6 {[%emt 0:00:30]} 7. Nbd2 {[%emt 0:00:30]} N8d7 {[%emt 0:01:38]} 8. c4 {[%emt 0:02:19]} dxc4 {[%emt 0:00:30]} 9. Nxc4 {[%emt 0:00:30]} Nxc4 {[%emt 0:06:38]} 10. Bxc4 {[%emt 0:00:20]} Bb4+ {[%emt 0:00:30]} 11. Bd2 {[%emt 0:01:10]} Bxf3 {[%emt 0:02:13]} 12. gxf3 {[%emt 0:00:00]} Bxd2+ {[%emt 0:00:31]} 13. Qxd2 {[%emt 0:02:54]} Nb6 {[%emt 0:00:30]} 14. Bd3 {[%emt 0:00:30]} c6 {[%emt 0:00:56]} 15. Qb4 {[%emt 0:05:03]} Qd7 {[%emt 0:07:20]} 16. Be4 {[%emt 0:09:18]} O-O-O {[%emt 0:00:31]} 17. O-O-O {[%emt 0:08:49]} Kb8 {[%emt 0:05:46]} 18. Rd3 {[%emt 0:00:57]} Nd5 {[%emt 0:03:03]} 19. Qa4 {[%emt 0:14:55]} f5 {[%emt 0:15:46]} 20. exf6 {[%emt 0:02:28]} gxf6 {[%emt 0:00:30]} 21. f4 {[%emt 0:00:30]} Nxf4 {[%emt 0:00:30]} 22. Rb3 {[%emt 0:00:30]} Nd5 {[%emt 0:00:30]} 23. Rd1 {[%emt 0:00:30]} f5 {[%emt 0:00:30]} 24. Bf3 {[%emt 0:03:49]} Rc8 {[%emt 0:15:19]} 25. Kb1 {[%emt 0:00:49]} Rc7 {[%emt 0:00:49]} 26. Rc1 {[%emt 0:00:20]} Rhc8 {[%emt 0:00:30]} 27. Qa6 {[%emt 0:17:23]} Ka8 {[%emt 0:02:04]} 28. Qa5 {[%emt 0:01:25]} Rb8 {[%emt 0:02:32]} 29. Ra3 {[%emt 0:07:38]} b6 {[%emt 0:00:16]} 30. Qa6 {[%emt 0:01:40]} Qc8 {[%emt 0:06:07]} 31. Qa4 {[%emt 0:01:34]} Qb7 {[%emt 0:04:04]} 32. Qb3 {[%emt 0:07:58]} Rbc8 {[%emt 0:00:58]} 33. Rc4 {[%emt 0:00:23]} Qb8 {[%emt 0:07:03]} 34. Rca4 {[%emt 0:01:24]} Rb7 {[%emt 0:01:35]} 35. Ra6 {[%emt 0:01:03]} Qxh2 {[%emt 0:02:12]} 36. Qa4 {[%emt 0:03:21]} Qb8 {[%emt 0:01:01]} 37. Qb3 {[%emt 0:00:45]} Qc7 {[%emt 0:03:02]} 38. R6a4 {[%emt 0:00:10]} Kb8 {[%emt 0:01:03]} 39. Be2 {[%emt 0:00:04]} b5 {[%emt 0:00:15]} 40. Ra6 {[%emt 0:00:46]} Rg8 {[%emt 0:01:14]} 41. Qd1 {[%emt 0:00:46]} Rg7 {[%emt 0:01:36]} 42. Qc1 {[%emt 0:00:31]} Nb4 {[%emt 0:00:48]} 43. R6a5 {[%emt 0:00:00]} Qd6 {[%emt 0:00:29]} 44. b3 {[%emt 0:01:21]} Qxd4 {[%emt 0:00:49]} 45. Bd1 {[%emt 0:00:34]} Qxf2 {[%emt 0:00:43]} 46. Qc3 {[%emt 0:00:16]} Rg1 {[%emt 0:01:39]} 47. Qe5+ {[%emt 0:00:08]} Ka8 {[%emt 0:00:34]} 48. Qh8+ {[%emt 0:00:23]} Rb8 {[%emt 0:00:08]} 49. Rxa7+ {[%emt 0:00:07]} Qxa7 {[%emt 0:00:07]} 50. Rxa7+ {[%emt 0:00:02]} Kxa7 {[%emt 0:00:31]} 51. Qd4+ {[%emt 0:00:12]} Kb7 {[%emt 0:00:00]} 52. Qxg1 {[%emt 0:00:01]} Rc8 {[%emt 0:00:15]} 53. Qd4 {[%emt 0:00:29]} Nd5 {[%emt 0:00:17]} 54. Bf3 {[%emt 0:01:20]} Rc7 {[%emt 0:01:35]} 55. Kb2 {[%emt 0:01:11]} Rf7 {[%emt 0:00:31]} 56. a4 {[%emt 0:00:53]} bxa4 {[%emt 0:00:13]} 57. bxa4 {[%emt 0:00:15]} Rd7 {[%emt 0:00:02]} 58. Qc4 {[%emt 0:00:28]} Nb6 {[%emt 0:00:01]} 59. Qb4 {[%emt 0:00:18]} Kc7 {[%emt 0:00:28]} 60. a5 {[%emt 0:00:11]} Nc8 {[%emt 0:00:16]} 61. a6 {[%emt 0:00:13]} Na7 {[%emt 0:00:22]} 62. Qb7+ {[%emt 0:01:15]} Kd6 {[%emt 0:00:10]} 63. Qb8+ {[%emt 0:00:40]} Ke7 {[%emt 0:00:29]} 64. Bh5 {[%emt 0:00:27]} Kf6 {[%emt 0:01:42]} 65. Qf8+ {[%emt 0:01:09]} Ke5 {[%emt 0:00:14]} 66. Qc5+ {[%emt 0:00:11]} Kf6 {[%emt 0:00:14]} 67. Qb6 {[%emt 0:00:28]} e5 {[%emt 0:00:08]} 68. Qb7 {[%emt 0:00:28]} Ke7 {[%emt 0:00:28]} 69. Qb8 {[%emt 0:00:05]} Nb5 {[%emt 0:00:44]} 70. Qxe5+ {[%emt 0:00:04]} Kd8 {[%emt 0:00:17]} 71. Qb8+ {[%emt 0:00:23]} Ke7 {[%emt 0:00:08]} 72. Qe8+ {[%emt 0:00:13]} Kd6 {[%emt 0:00:16]} 73. Be2 {[%emt 0:00:12]} Nc7 {[%emt 0:00:41]} 74. Qf8+ {[%emt 0:00:15]} Re7 {[%emt 0:00:18]} 75. a7 {[%emt 0:00:10]} Kd7 {[%emt 0:00:25]} 76. Qxf5+ {[%emt 0:00:10]} Kd8 {[%emt 0:00:00]} 77. Ba6 {[%emt 0:00:00]} Na8 {[%emt 0:00:33]} 1-0

[Event "Slovakia Chess Open 2024"]
[Site "Modra"]
[Date "2024.03.05"]
[Round "9.14"]
[White "Rozboril, Alex"]
[Black "Pikulik, Roman"]
[Result "0-1"]
[ECO "B35"]
[WhiteElo "1563"]
[BlackElo "1675"]
[Annotator "NA RC"]
[PlyCount "46"]
[EventDate "2024.02.29"]
[EventType "swiss"]
[EventCountry "SVK"]
[SourceTitle "playchess.com"]
[Source "ChessBase"]
[SourceQuality "1"]
[TimeControl "5400+30"]

1. e4 {[%emt 0:00:04]} c5 {[%emt 0:00:08]} 2. Nf3 {[%emt 0:00:04]} Nc6 {[%emt 0:01:25]} 3. d4 {[%emt 0:00:24]} cxd4 {[%emt 0:00:12]} 4. Nxd4 {[%emt 0:00:02]} g6 {[%emt 0:00:13]} 5. Nc3 {[%emt 0:00:31]} Bg7 {[%emt 0:00:10]} 6. Be3 {[%emt 0:00:22]} Nf6 {[%emt 0:00:09]} 7. Bc4 {[%emt 0:00:58]} O-O {[%emt 0:00:12]} 8. O-O {[%emt 0:00:38]} Nxe4 {[%emt 0:00:11]} 9. Nxe4 {[%emt 0:01:23]} d5 {[%emt 0:00:11]} 10. Nxc6 {[%emt 0:00:23]} bxc6 {[%emt 0:00:09]} 11. Nd2 {[%emt 0:08:27]} dxc4 {[%emt 0:10:52]} 12. Nxc4 {[%emt 0:00:18]} Ba6 {[%emt 0:00:14]} 13. Qd3 {[%emt 0:14:39]} Qd5 {[%emt 0:01:45]} 14. b3 {[%emt 0:04:42]} Qxd3 {[%emt 0:06:02]} 15. cxd3 {[%emt 0:02:07]} Bxa1 {[%emt 0:00:16]} 16. Rxa1 {[%emt 0:00:03]} Bxc4 {[%emt 0:07:18]} 17. bxc4 {[%emt 0:00:30]} e6 {[%emt 0:00:30]} 18. d4 {[%emt 0:05:30]} Rfb8 {[%emt 0:00:19]} 19. c5 {[%emt 0:07:06]} Rb7 {[%emt 0:00:59]} 20. Bf4 {[%emt 0:02:34]} a5 {[%emt 0:00:46]} 21. a4 {[%emt 0:11:03]} Rb4 {[%emt 0:00:15]} 22. Be5 {[%emt 0:02:59]} Rd8 {[%emt 0:02:35]} 23. Bd6 {[%emt 0:19:47]} Rxd4 {[%emt 1:07:09]} 0-1

[Event "Slovakia Chess Open 2024"]
[Site "Modra"]
[Date "2024.03.05"]
[Round "9.15"]
[White "Banas, Samuel"]
[Black "Hanzel, Richard"]
[Result "1-0"]
[ECO "B13"]
[WhiteElo "1733"]
[BlackElo "1531"]
[Annotator "NA RC"]
[PlyCount "75"]
[EventDate "2024.02.29"]
[EventType "swiss"]
[EventCountry "SVK"]
[SourceTitle "playchess.com"]
[Source "ChessBase"]
[SourceQuality "1"]
[TimeControl "5400+30"]

1. e4 {[%emt 0:00:04]} c6 {[%emt 0:00:04]} 2. d4 {[%emt 0:00:19]} d5 {[%emt 0:00:05]} 3. exd5 {[%emt 0:00:06]} cxd5 {[%emt 0:00:05]} 4. Bd3 {[%emt 0:00:07]} Nc6 {[%emt 0:00:05]} 5. c3 {[%emt 0:00:14]} Nf6 {[%emt 0:00:03]} 6. h3 {[%emt 0:00:05]} e5 {[%emt 0:00:06]} 7. dxe5 {[%emt 0:01:00]} Nxe5 {[%emt 0:00:05]} 8. Bf4 {[%emt 0:00:31]} Nxd3+ {[%emt 0:00:55]} 9. Qxd3 {[%emt 0:00:12]} Be6 {[%emt 0:01:19]} 10. Nf3 {[%emt 0:00:12]} Bd6 {[%emt 0:02:44]} 11. Bg5 {[%emt 0:00:40]} h6 {[%emt 0:00:43]} 12. Bh4 {[%emt 0:00:15]} Be7 {[%emt 0:01:38]} 13. O-O {[%emt 0:00:24]} O-O {[%emt 0:00:12]} 14. Nbd2 {[%emt 0:00:09]} Qd7 {[%emt 0:02:44]} 15. Nd4 {[%emt 0:02:58]} Rae8 {[%emt 0:04:26]} 16. Rfe1 {[%emt 0:01:32]} Nh7 {[%emt 0:00:54]} 17. Bxe7 {[%emt 0:02:57]} Rxe7 {[%emt 0:00:06]} 18. Re3 {[%emt 0:01:26]} Rfe8 {[%emt 0:01:10]} 19. Rae1 {[%emt 0:00:14]} a6 {[%emt 0:01:26]} 20. Qe2 {[%emt 0:00:33]} Nf6 {[%emt 0:01:12]} 21. N2b3 {[%emt 0:00:25]} Qc8 {[%emt 0:02:09]} 22. f4 {[%emt 0:02:01]} Ne4 {[%emt 0:01:34]} 23. c4 {[%emt 0:01:58]} Qxc4 {[%emt 0:01:45]} 24. Qxc4 {[%emt 0:00:13]} dxc4 {[%emt 0:00:07]} 25. Rxe4 {[%emt 0:00:08]} cxb3 {[%emt 0:00:05]} 26. f5 {[%emt 0:00:16]} Bxf5 {[%emt 0:01:38]} 27. Rxe7 {[%emt 0:00:30]} Rxe7 {[%emt 0:00:13]} 28. Rxe7 {[%emt 0:00:08]} bxa2 {[%emt 0:00:15]} 29. Re1 {[%emt 0:00:51]} Bb1 {[%emt 0:00:24]} 30. Nb3 {[%emt 0:00:05]} a5 {[%emt 0:00:15]} 31. Na1 {[%emt 0:00:17]} b5 {[%emt 0:00:30]} 32. Re5 {[%emt 0:00:21]} Bd3 {[%emt 0:00:37]} 33. Kf2 {[%emt 0:00:15]} a4 {[%emt 0:00:37]} 34. Ke3 {[%emt 0:00:24]} Bc4 {[%emt 0:00:02]} 35. Kd2 {[%emt 0:01:13]} f6 {[%emt 0:00:37]} 36. Rc5 {[%emt 0:00:12]} Kh7 {[%emt 0:00:26]} 37. Kc3 {[%emt 0:01:12]} Kg6 {[%emt 0:00:34]} 38. Rxc4 {[%emt 0:00:07]} 1-0

[Event "Slovakia Chess Open 2024"]
[Site "Modra"]
[Date "2024.03.05"]
[Round "9.16"]
[White "Mruskovic, Ondrej"]
[Black "Veres, Alex"]
[Result "1/2-1/2"]
[ECO "C01"]
[WhiteElo "1510"]
[BlackElo "1584"]
[Annotator "NA"]
[PlyCount "48"]
[EventDate "2024.02.29"]
[EventType "swiss"]
[EventCountry "SVK"]
[SourceTitle "playchess.com"]
[Source "ChessBase"]
[SourceQuality "1"]
[TimeControl "5400+30"]

1. e4 {[%emt 0:00:02]} e6 {[%emt 0:00:22]} 2. d4 {[%emt 0:00:07]} d5 {[%emt 0:01:41]} 3. exd5 {[%emt 0:00:05]} exd5 {[%emt 0:00:08]} 4. Nf3 {[%emt 0:00:11]} Nf6 {[%emt 0:00:09]} 5. Nc3 {[%emt 0:00:21]} c6 {[%emt 0:00:08]} 6. h3 {[%emt 0:00:23]} Bf5 {[%emt 0:00:23]} 7. Bd3 {[%emt 0:00:27]} Bxd3 {[%emt 0:00:30]} 8. Qxd3 {[%emt 0:00:09]} Bb4 {[%emt 0:00:27]} 9. Bg5 {[%emt 0:01:53]} O-O {[%emt 0:00:21]} 10. O-O {[%emt 0:00:16]} h6 {[%emt 0:01:05]} 11. Bh4 {[%emt 0:00:49]} Nbd7 {[%emt 0:00:34]} 12. a3 {[%emt 0:01:02]} Bd6 {[%emt 0:01:13]} 13. Rfe1 {[%emt 0:00:35]} Qb6 {[%emt 0:00:50]} 14. b4 {[%emt 0:05:55]} Qc7 {[%emt 0:01:39]} 15. Rac1 {[%emt 0:09:54]} Rfe8 {[%emt 0:01:54]} 16. Ne2 {[%emt 0:02:05]} b5 {[%emt 0:04:07]} 17. Bg3 {[%emt 0:05:31]} Ne4 {[%emt 0:03:46]} 18. Bxd6 {[%emt 0:01:08]} Nxd6 {[%emt 0:01:16]} 19. Nd2 {[%emt 0:05:25]} Re7 {[%emt 0:04:29]} 20. Ng3 {[%emt 0:04:07]} Rae8 {[%emt 0:01:34]} 21. Kf1 {[%emt 0:00:28]} Nf6 {[%emt 0:05:24]} 22. Qc3 {[%emt 0:08:21]} g6 {[%emt 0:16:24]} 23. Rxe7 {[%emt 0:09:49]} Rxe7 {[%emt 0:01:10]} 24. Re1 {[%emt 0:00:45]} Nc4 {[%emt 0:04:37]} 1/2-1/2

[Event "Slovakia Chess Open 2024"]
[Site "Modra"]
[Date "2024.03.05"]
[Round "9.17"]
[White "Gecik Jergus"]
[Black "Zentko, Ladislav"]
[Result "0-1"]
[ECO "C50"]
[WhiteElo "1000"]
[BlackElo "1749"]
[Annotator "NA RC"]
[PlyCount "77"]
[EventDate "2024.02.29"]
[EventType "swiss"]
[EventCountry "SVK"]
[SourceTitle "playchess.com"]
[Source "ChessBase"]
[SourceQuality "1"]
[TimeControl "5400+30"]

1. e4 {[%emt 0:33:13]} e5 {[%emt 0:00:15]} 2. Nf3 {[%emt 0:00:30]} Nc6 {[%emt 0:00:16]} 3. Nc3 {[%emt 0:00:15]} Bc5 {[%emt 0:00:10]} 4. Bc4 {[%emt 0:01:27]} d6 {[%emt 0:00:35]} 5. d3 {[%emt 0:01:50]} Nf6 {[%emt 0:00:48]} 6. O-O {[%emt 0:01:28]} O-O {[%emt 0:00:18]} 7. Bg5 {[%emt 0:00:37]} h6 {[%emt 0:01:26]} 8. Bh4 {[%emt 0:00:31]} Ne7 {[%emt 0:06:11]} 9. Nd5 {[%emt 0:02:34]} Nexd5 {[%emt 0:00:23]} 10. Bxd5 {[%emt 0:00:22]} c6 {[%emt 0:00:12]} 11. Bc4 {[%emt 0:01:03]} Qe7 {[%emt 0:04:25]} 12. c3 {[%emt 0:07:20]} Be6 {[%emt 0:01:01]} 13. d4 {[%emt 0:03:14]} Bxc4 {[%emt 0:01:09]} 14. Re1 {[%emt 0:00:37]} Bb6 {[%emt 0:04:58]} 15. b3 {[%emt 0:04:14]} Ba6 {[%emt 0:01:38]} 16. d5 {[%emt 0:01:08]} cxd5 {[%emt 0:05:24]} 17. exd5 {[%emt 0:01:02]} Bb5 {[%emt 0:04:53]} 18. a4 {[%emt 0:02:20]} Bd7 {[%emt 0:00:29]} 19. Re4 {[%emt 0:04:48]} g5 {[%emt 0:02:34]} 20. Rb4 {[%emt 0:02:58]} Rab8 {[%emt 0:02:10]} 21. Nxg5 {[%emt 0:02:01]} Nxd5 {[%emt 0:04:55]} 22. Qxd5 {[%emt 0:02:42]} hxg5 {[%emt 0:00:19]} 23. Bg3 {[%emt 0:04:45]} Be6 {[%emt 0:00:46]} 24. Qe4 {[%emt 0:01:11]} f5 {[%emt 0:01:01]} 25. Qd3 {[%emt 0:04:39]} Kg7 {[%emt 0:07:45]} 26. a5 {[%emt 0:08:31]} Bc5 {[%emt 0:01:50]} 27. Rba4 {[%emt 0:00:41]} a6 {[%emt 0:00:20]} 28. b4 {[%emt 0:05:51]} Ba7 {[%emt 0:00:09]} 29. Re1 {[%emt 0:01:16]} f4 {[%emt 0:00:41]} 30. Bxf4 {[%emt 0:00:28]} Rxf4 {[%emt 0:00:57]} 31. Re2 {[%emt 0:01:00]} Rbf8 {[%emt 0:00:21]} 32. Kf1 {[%emt 0:01:04]} Bxf2 {[%emt 0:00:29]} 33. Rxf2 {[%emt 0:00:49]} Rxf2+ {[%emt 0:04:07]} 34. Ke1 {[%emt 0:00:00]} R8f6 {[%emt 0:00:30]} 35. Qe2 {[%emt 0:00:45]} Rxe2+ {[%emt 0:00:10]} 36. Kxe2 {[%emt 0:00:27]} Bg4+ {[%emt 0:00:12]} 37. Ke3 {[%emt 0:00:44]} Qd7 {[%emt 0:00:13]} 38. Kd3 {[%emt 0:00:29]} Qxa4 {[%emt 0:00:09]} 39. Kc4 {[%emt 0:00:31]} 0-1